fUSD/lending_fUSD_20240107
["ID","MTS","AMOUNT","RATE_DAILY","PERIOD"]
[310652050,1704636643528,-500.0,0.00022899,2]
[310652051,1704636643538,-500.0,0.00022899,2]
[310652052,1704636643549,-500.0,0.00022899,2]
[310652053,1704636643559,-500.0,0.00022899,2]
[310652054,1704636643569,-500.0,0.00022899,2]
[310652055,1704636643579,-500.0,0.00022899,2]
[310652056,1704636643588,-500.0,0.00022899,2]
[310652057,1704636643598,-500.0,0.00022899,2]
[310652058,1704636643608,-500.0,0.00022899,2]
[310652059,1704636643618,-500.0,0.00022899,2]
[310652060,1704636643627,-533.74,0.00022899,2]
[310652061,1704636643636,-500.0,0.00022899,2]
[310652062,1704636643646,-500.0,0.00022899,2]
[310652063,1704636643655,-500.0,0.00022899,2]
[310652064,1704636643665,-500.0,0.00022899,2]
[310652065,1704636643674,-500.0,0.00022899,2]
[310652066,1704636643683,-500.0,0.00022899,2]
[310652067,1704636643692,-500.0,0.00022899,2]
[310652068,1704636643701,-500.0,0.00022899,2]
[310652069,1704636643710,-500.0,0.00022899,2]
[310652070,1704636643719,-500.0,0.00022899,2]
[310652071,1704636643728,-264.93,0.00022899,2]
[310652072,1704636643738,-500.0,0.00022899,2]
[310652073,1704636643747,-500.0,0.00022899,2]
[310652074,1704636643757,-500.0,0.00022899,2]
[310652075,1704636643770,-500.0,0.00022899,2]
[310652076,1704636643784,-500.0,0.00022899,2]
[310652077,1704636643794,-530.56,0.00022899,2]
[310652078,1704636643803,-373.98,0.00022899,2]
[310652079,1704636643814,-500.0,0.00022899,2]
[310652080,1704636643825,-372.26,0.00022899,2]
[310652081,1704636643834,-516.61,0.00022899,2]
[310652082,1704636643843,-500.0,0.00022899,2]
[310652083,1704636643852,-604.27,0.00022899,2]
[310652084,1704636643862,-516.61,0.00022899,2]
[310652085,1704636643871,-516.61,0.00022899,2]
[310652086,1704636643880,-516.61,0.00022899,2]
[310652087,1704636643889,-516.61,0.00022899,2]
[310652088,1704636643899,-516.61,0.00022899,2]
[310652089,1704636643909,-516.61,0.00022899,2]
[310652090,1704636643918,-516.61,0.00022899,2]
[310652091,1704636643927,-516.61,0.00022899,2]
[310652092,1704636643936,-516.61,0.00022899,2]
[310652093,1704636643945,-516.61,0.00022899,2]
[310652094,1704636643955,-516.61,0.00022899,2]
[310652095,1704636643964,-516.61,0.00022899,2]
[310652096,1704636643973,-516.61,0.00022899,2]
[310652097,1704636643983,-516.61,0.00022899,2]
[310652098,1704636643992,-516.61,0.00022899,2]
[310652099,1704636644001,-516.61,0.00022899,2]
[310652100,1704636644010,-516.61,0.00022899,2]
[310652101,1704636644022,-516.61,0.00022899,2]
[310652102,1704636644032,-516.61,0.00022899,2]
[310652103,1704636644041,-516.61,0.00022899,2]
[310652104,1704636644050,-516.69,0.00022899,2]
[310652105,1704636644059,-754.89,0.00022899,2]
[310652106,1704636644068,-754.89,0.00022899,2]
[310652107,1704636644078,-754.89,0.00022899,2]
[310652108,1704636644087,-754.89,0.00022899,2]
[310652109,1704636644097,-754.89,0.00022899,2]
[310652110,1704636644106,-754.89,0.00022899,2]
[310652111,1704636644116,-754.89,0.00022899,2]
[310652112,1704636644125,-754.89,0.00022899,2]
[310652113,1704636644134,-754.89,0.00022899,2]
[310652114,1704636644143,-754.89,0.00022899,2]
[310652115,1704636644153,-754.89,0.00022899,2]
[310652116,1704636644162,-754.89,0.00022899,2]
[310652117,1704636644171,-754.89,0.00022899,2]
[310652118,1704636644181,-754.89,0.00022899,2]
[310652119,1704636644190,-754.89,0.00022899,2]
[310652120,1704636644199,-754.89,0.00022899,2]
[310652121,1704636644209,-754.89,0.00022899,2]
[310652122,1704636644218,-754.89,0.00022899,2]
[310652123,1704636644227,-754.89,0.00022899,2]
[310652124,1704636644237,-754.89,0.00022899,2]
[310652125,1704636644247,-754.89,0.00022899,2]
[310652126,1704636644257,-754.97,0.00022899,2]
[310652127,1704636644266,-500.0,0.00022899,2]
[310652128,1704636644277,-500.0,0.00022899,2]
[310652129,1704636644286,-500.0,0.00022899,2]
[310652130,1704636644295,-500.0,0.00022899,2]
[310652131,1704636644304,-500.0,0.00022899,2]
[310652132,1704636644313,-500.0,0.00022899,2]
[310652133,1704636644322,-500.0,0.00022899,2]
[310652134,1704636644331,-500.0,0.00022899,2]
[310652135,1704636644343,-500.0,0.00022899,2]
[310652136,1704636644351,-500.0,0.00022899,2]
[310652137,1704636644361,-500.0,0.00022899,2]
[310652138,1704636644371,-500.0,0.00022899,2]
[310652139,1704636644381,-500.0,0.00022899,2]
[310652140,1704636644390,-500.0,0.00022899,2]
[310652141,1704636644399,-500.0,0.00022899,2]
[310652142,1704636644409,-283.17,0.00022899,2]
[310652143,1704636644418,-500.0,0.00022899,2]
[310652144,1704636644427,-500.0,0.00022899,2]
[310652145,1704636644436,-374.68,0.00022899,2]
[310652146,1704636644446,-467.54140158,0.00022899,2]
[310652147,1704636644455,-500.0,0.00022899,2]
[310652148,1704636644465,-500.0,0.00022899,2]
[310652149,1704636644474,-500.0,0.00022899,2]
[310652150,1704636644484,-500.0,0.00022899,2]
[310652151,1704636644493,-500.0,0.00022899,2]
[310652152,1704636644502,-500.0,0.00022899,2]
[310652153,1704636644511,-500.0,0.00022899,2]
[310652154,1704636644522,-500.0,0.00022899,2]
[310652155,1704636644531,-500.0,0.00022899,2]
[310652156,1704636644541,-177.55,0.00022899,2]
[310652157,1704636644550,-295.63,0.00022899,2]
[310652158,1704636644560,-502.97,0.00022899,2]
[310652159,1704636644570,-354.96,0.00022899,2]
[310652160,1704636644579,-893.6,0.00022899,2]
[310652161,1704636644589,-893.6,0.00022899,2]
[310652162,1704636644598,-893.6,0.00022899,2]
[310652163,1704636644607,-893.6,0.00022899,2]
[310652164,1704636644616,-893.6,0.00022899,2]
[310652165,1704636644625,-893.6,0.00022899,2]
[310652166,1704636644634,-893.6,0.00022899,2]
[310652167,1704636644647,-500.0,0.00022899,2]
[310652168,1704636644657,-500.0,0.00022899,2]
[310652169,1704636644666,-500.0,0.00022899,2]
[310652170,1704636644676,-893.6,0.00022899,2]
[310652171,1704636644686,-500.0,0.00022899,2]
[310652172,1704636644696,-893.6,0.00022899,2]
[310652173,1704636644705,-500.0,0.00022899,2]
[310652174,1704636644715,-893.6,0.00022899,2]
[310652175,1704636644725,-500.0,0.00022899,2]
[310652176,1704636644734,-893.6,0.00022899,2]
[310652177,1704636644743,-500.0,0.00022899,2]
[310652178,1704636644752,-893.6,0.00022899,2]
[310652179,1704636644762,-500.0,0.00022899,2]
[310652180,1704636644774,-893.6,0.00022899,2]
[310652181,1704636644787,-500.0,0.00022899,2]
[310652182,1704636644797,-893.6,0.00022899,2]
[310652183,1704636644806,-173.19,0.00022899,2]
[310652184,1704636644816,-893.6,0.00022899,2]
[310652185,1704636644826,-893.6,0.00022899,2]
[310652186,1704636644836,-893.6,0.00022899,2]
[310652187,1704636644846,-893.6,0.00022899,2]
[310652188,1704636644855,-893.6,0.00022899,2]
[310652189,1704636644865,-893.6,0.00022899,2]
[310652190,1704636644875,-893.6,0.00022899,2]
[310652191,1704636644885,-893.67,0.00022899,2]
[310652192,1704636644894,-500.0,0.00022899,2]
[310652193,1704636644904,-500.0,0.00022899,2]
[310652194,1704636644913,-533.31,0.00022899,2]
[310652195,1704636644922,-1804.42624724,0.000229,2]
[310652196,1704636644932,-22225.0,0.000229,2]
[310652197,1704636644941,-31580.46302694,0.000229,2]
[310652198,1704636644950,-1297669.62530766,0.000229,3]
[310652199,1704636644979,-500.0,0.00022798,2]
[310652200,1704636644988,-203338.6113567,0.000229,3]
[310652206,1704636645370,-510.22750699,0.00022798,2]
[310652208,1704636645380,-509.2588437,0.00022798,2]
[310652210,1704636645389,-514.19958563,0.00022798,2]
[310652212,1704636645398,-500.0,0.00022798,2]
[310652213,1704636645407,-500.0,0.00022798,2]
[310652214,1704636645417,-19760.81406368,0.000229,2]
[310652215,1704636645428,-597.597,0.000229,2]
[310652216,1704636645440,-3264.49912701,0.000229,2]
[310652217,1704636645463,-3689.40594558,0.000229,2]
[310652218,1704636645475,-378832.72350929,0.000229,2]
[310652219,1704636645485,-1387993.02088091,0.000229,3]
[310652220,1704636645496,-404.78500104,0.000229,3]
[310652221,1704636645512,-371.85233453,0.000229,3]
[310652222,1704636645617,-818.49738395,0.000229,3]
[310652223,1704636645630,-5103.58332295,0.000229,3]
[310652224,1704636645641,-395.38051931,0.000229,3]
[310652225,1704636645653,-21252.6444,0.000229,3]
[310652226,1704636645666,-2222.2,0.000229,3]
[310652227,1704636645731,-504.18705634,0.00022798,2]
[310652228,1704636645741,-2629349.99972146,0.000229,3]
[310652229,1704636645750,-417.22,0.000229,2]
[310652230,1704636645760,-177.65,0.000229,2]
[310652231,1704636645772,-150.0,0.000229,2]
[310652232,1704636645785,-400.66,0.000229,2]
[310652233,1704636645794,-150.0,0.000229,2]
[310652234,1704636645804,-313.77,0.000229,2]
[310652235,1704636645813,-150.0,0.000229,2]
[310652236,1704636645823,-407.44,0.000229,2]
[310652237,1704636645834,-938.59,0.000229,2]
[310652238,1704636645844,-1500.79,0.000229,2]
[310652239,1704636645853,-937.47,0.000229,2]
[310652240,1704636645863,-150.0,0.00022902,2]
[310652241,1704636645872,-150.0,0.00022906,2]
[310652242,1704636645882,-300.0,0.00022908,2]
[310652243,1704636645891,-1500.0,0.00022908,2]
[310652244,1704636645902,-150.0,0.00022909,2]
[310652245,1704636645912,-150.0,0.0002291,2]
[310652246,1704636645922,-618.83,0.00022912,2]
[310652247,1704636645931,-300.0,0.00022918,2]
[310652248,1704636645942,-197.15961698,0.00022919,2]
[310652249,1704636645952,-150.0,0.00022922,2]
[310652250,1704636645961,-153.97,0.0002293,2]
[310652251,1704636645972,-214.48804093,0.00022937,2]
[310652252,1704636645981,-150.0,0.00022941,2]
[310652253,1704636645991,-150.0,0.00022946,2]
[310652255,1704636646000,-8071.0,0.0002295,2]
[310652257,1704636646010,-7330.0,0.0002295,2]
[310652259,1704636646020,-300.0,0.00022951,2]
[310652260,1704636646030,-166.91230757,0.00022954,2]
[310652261,1704636646039,-150.0,0.00022963,2]
[310652262,1704636646048,-302.02476776,0.0002298,2]
[310652263,1704636646057,-300.0,0.00022986,2]
[310652264,1704636646066,-150.0,0.00022988,2]
[310652265,1704636646075,-943.0,0.0002299,2]
[310652266,1704636646084,-1234.0,0.0002299,2]
[310652267,1704636646093,-944.88,0.0002299,2]
[310652268,1704636646103,-318.0,0.0002299,2]
[310652269,1704636646112,-300.0,0.00022994,2]
[310652270,1704636646121,-500.0,0.00022997,2]
[310652271,1704636646130,-500.0,0.00022997,2]
[310652272,1704636646140,-310.03993716,0.00022997,2]
[310652273,1704636646150,-500.0,0.00022997,2]
[310652274,1704636646159,-152.33377386,0.00022997,2]
[310652275,1704636646169,-500.0,0.00022997,2]
[310652276,1704636646179,-500.0,0.00022997,2]
[310652277,1704636646189,-500.0,0.00022997,2]
[310652278,1704636646198,-500.0,0.00022997,2]
[310652279,1704636646207,-510.16676184,0.00022997,2]
[310652280,1704636646217,-515.73583607,0.00022997,2]
[310652281,1704636646226,-500.0,0.00022997,2]
[310652282,1704636646237,-500.0,0.00022997,2]
[310652283,1704636646247,-502.71485939,0.00022997,2]
[310652284,1704636646256,-500.0,0.00022997,2]
[310652285,1704636646265,-500.0,0.00022997,2]
[310652286,1704636646277,-500.0,0.00022997,2]
[310652287,1704636646287,-503.4134008,0.00022997,2]
[310652288,1704636646296,-500.0,0.00022997,2]
[310652289,1704636646305,-500.0,0.00022997,2]
[310652290,1704636646314,-503.1885483,0.00022997,2]
[310652291,1704636646324,-500.0,0.00022997,2]
[310652292,1704636646334,-506.36194637,0.00022997,2]
[310652293,1704636646343,-538.0668922,0.00022997,2]
[310652294,1704636646352,-500.0,0.00022997,2]
[310652295,1704636646362,-510.51433414,0.00022997,2]
[310652296,1704636646371,-510.70119235,0.00022997,2]
[310652297,1704636646393,-641.71700744,0.00022997,2]
[310652298,1704636646402,-525.6268876,0.00022997,2]
[310652299,1704636646412,-500.0,0.00022997,2]
[310652300,1704636646421,-500.0,0.00022997,2]
[310652301,1704636646431,-326.6119683,0.00022997,2]
[310652302,1704636646441,-169.18,0.00022997,2]
[310652303,1704636646452,-397.57484886,0.00022997,2]
[310652304,1704636646462,-180.79,0.00022997,2]
[310652305,1704636646471,-500.0,0.00022997,2]
[310652306,1704636646481,-494.27,0.00022997,2]
[310652307,1704636646491,-500.0,0.00022997,2]
[310652308,1704636646500,-500.0,0.00022997,2]
[310652309,1704636646511,-338.07620058,0.00022997,2]
[310652310,1704636646521,-500.0,0.00022997,2]
[310652311,1704636646530,-500.0,0.00022997,2]
[310652312,1704636646540,-500.0,0.00022997,2]
[310652313,1704636646550,-536.25608013,0.00022997,2]
[310652314,1704636646560,-500.0,0.00022997,2]
[310652315,1704636646570,-500.0,0.00022997,2]
[310652316,1704636646580,-500.0,0.00022997,2]
[310652317,1704636646589,-500.0,0.00022997,2]
[310652318,1704636646599,-500.0,0.00022997,2]
[310652319,1704636646609,-500.0,0.00022997,2]
[310652320,1704636646618,-500.0,0.00022997,2]
[310652321,1704636646628,-500.0,0.00022997,2]
[310652322,1704636646638,-500.0,0.00022997,2]
[310652323,1704636646647,-646.76,0.00022997,2]
[310652324,1704636646657,-513.78249211,0.00022997,2]
[310652325,1704636646666,-506.21591726,0.00022997,2]
[310652326,1704636646676,-500.0,0.00022997,2]
[310652327,1704636646686,-500.0,0.00022997,2]
[310652328,1704636646695,-500.0,0.00022997,2]
[310652329,1704636646705,-518.80622403,0.00022997,2]
[310652330,1704636646714,-518.17440406,0.00022997,2]
[310652331,1704636646724,-508.36998013,0.00022997,2]
[310652332,1704636646733,-500.0,0.00022997,2]
[310652333,1704636646743,-500.0,0.00022997,2]
[310652334,1704636646752,-511.64820083,0.00022997,2]
[310652335,1704636646761,-513.853707,0.00022997,2]
[310652336,1704636646772,-519.88733687,0.00022997,2]
[310652337,1704636646786,-500.0,0.00022997,2]
[310652338,1704636646796,-509.30505041,0.00022997,2]
[310652339,1704636646805,-500.0,0.00022997,2]
[310652340,1704636646814,-506.71237505,0.00022997,2]
[310652341,1704636646823,-500.0,0.00022997,2]
[310652342,1704636646832,-506.32034028,0.00022997,2]
[310652343,1704636646843,-508.19472671,0.00022997,2]
[310652344,1704636646852,-617.62,0.00022997,2]
[310652345,1704636646861,-505.22683099,0.00022997,2]
[310652346,1704636646870,-234.10786775,0.00022997,2]
[310652347,1704636646880,-497.0,0.00022997,2]
[310652348,1704636646893,-504.01130712,0.00022997,2]
[310652349,1704636646903,-500.0,0.00022997,2]
[310652350,1704636646912,-500.0,0.00022997,2]
[310652351,1704636646921,-500.0,0.00022997,2]
[310652352,1704636646932,-512.8221589,0.00022997,2]
[310652353,1704636646942,-500.0,0.00022997,2]
[310652354,1704636646951,-503.54111998,0.00022997,2]
[310652355,1704636646961,-500.0,0.00022997,2]
[310652356,1704636646971,-500.0,0.00022997,2]
[310652357,1704636646980,-519.66707685,0.00022997,2]
[310652358,1704636646990,-500.0,0.00022997,2]
[310652359,1704636646999,-500.0,0.00022997,2]
[310652360,1704636647247,-526.98200801,0.00022997,2]
[310652361,1704636647257,-502.80781043,0.00022997,2]
[310652362,1704636647266,-504.55939174,0.00022997,2]
[310652363,1704636647278,-500.0,0.00022997,2]
[310652364,1704636647287,-500.0,0.00022997,2]
[310652365,1704636647296,-500.0,0.00022997,2]
[310652366,1704636647306,-500.0,0.00022997,2]
[310652367,1704636647315,-500.0,0.00022997,2]
[310652368,1704636647325,-505.71141852,0.00022997,2]
[310652369,1704636647334,-519.30855914,0.00022997,2]
[310652370,1704636647343,-500.0,0.00022997,2]
[310652371,1704636647353,-601.52741198,0.00022997,2]
[310652372,1704636647362,-500.0,0.00022997,2]
[310652373,1704636647371,-507.34641676,0.00022997,2]
[310652374,1704636647381,-500.0,0.00022997,2]
[310652375,1704636647390,-500.0,0.00022997,2]
[310652376,1704636647399,-505.50835007,0.00022997,2]
[310652377,1704636647410,-500.0,0.00022997,2]
[310652378,1704636647419,-500.0,0.00022997,2]
[310652379,1704636647428,-503.97258945,0.00022997,2]
[310652380,1704636647437,-500.0,0.00022997,2]
[310652381,1704636647446,-506.58729221,0.00022997,2]
[310652382,1704636647455,-500.0,0.00022997,2]
[310652383,1704636647465,-500.0,0.00022997,2]
[310652384,1704636647474,-262.9972261,0.00022997,2]
[310652385,1704636647483,-500.86549953,0.00022997,2]
[310652386,1704636647493,-503.86503416,0.00022997,2]
[310652387,1704636647501,-500.0,0.00022997,2]
[310652388,1704636647511,-268.29871986,0.00022997,2]
[310652389,1704636647521,-502.41326138,0.00022997,2]
[310652390,1704636647530,-500.0,0.00022997,2]
[310652391,1704636647539,-500.0,0.00022997,2]
[310652392,1704636647548,-500.0,0.00022997,2]
[310652393,1704636647558,-500.0,0.00022997,2]
[310652394,1704636647567,-500.0,0.00022997,2]
[310652395,1704636647577,-520.62644802,0.00022997,2]
[310652396,1704636647586,-500.0,0.00022997,2]
[310652397,1704636647596,-500.0,0.00022997,2]
[310652398,1704636647606,-505.23170167,0.00022997,2]
[310652399,1704636647617,-500.0,0.00022997,2]
[310652400,1704636647627,-500.0,0.00022997,2]
[310652401,1704636647637,-500.0,0.00022997,2]
[310652402,1704636647647,-428.3422435,0.00022997,2]
[310652403,1704636647657,-500.0,0.00022997,2]
[310652404,1704636647667,-500.0,0.00022997,2]
[310652405,1704636647676,-506.60125144,0.00022997,2]
[310652406,1704636647686,-507.25144933,0.00022997,2]
[310652407,1704636647696,-514.74592455,0.00022997,2]
[310652408,1704636647706,-500.0,0.00022997,2]
[310652409,1704636647716,-637.28,0.00022997,2]
[310652410,1704636647727,-500.0,0.00022997,2]
[310652411,1704636647739,-403.6,0.00022997,2]
[310652412,1704636647749,-500.0,0.00022997,2]
[310652413,1704636647761,-366.82,0.00022997,2]
[310652414,1704636647771,-521.63605488,0.00022997,2]
[310652415,1704636647785,-500.0,0.00022997,2]
[310652416,1704636647795,-500.0,0.00022997,2]
[310652417,1704636647805,-500.0,0.00022997,2]
[310652418,1704636647814,-500.0,0.00022997,2]
[310652419,1704636647824,-504.80329036,0.00022997,2]
[310652420,1704636647834,-502.51415483,0.00022997,2]
[310652421,1704636647844,-506.46509914,0.00022997,2]
[310652422,1704636647853,-500.0,0.00022997,2]
[310652423,1704636647863,-500.0,0.00022997,2]
[310652424,1704636647872,-472.28519788,0.00022997,2]
[310652425,1704636647882,-510.57188064,0.00022997,2]
[310652426,1704636647893,-500.0,0.00022997,2]
[310652427,1704636647902,-448.78,0.00022997,2]
[310652428,1704636647912,-500.0,0.00022997,2]
[310652429,1704636647921,-500.0,0.00022997,2]
[310652430,1704636647931,-500.0,0.00022997,2]
[310652431,1704636647944,-500.0,0.00022997,2]
[310652432,1704636647954,-500.0,0.00022997,2]
[310652433,1704636647963,-507.0339842,0.00022997,2]
[310652434,1704636647973,-377.41,0.00022997,2]
[310652435,1704636647983,-245.88904246,0.00022997,2]
[310652436,1704636647992,-519.39410238,0.00022997,2]
[310652437,1704636648001,-505.28544253,0.00022997,2]
[310652438,1704636648011,-524.05820585,0.00022997,2]
[310652439,1704636648023,-513.81962117,0.00022997,2]
[310652440,1704636648033,-500.0,0.00022997,2]
[310652441,1704636648042,-513.42040845,0.00022997,2]
[310652442,1704636648051,-502.41422587,0.00022997,2]
[310652443,1704636648059,-500.0,0.00022997,2]
[310652444,1704636648069,-505.85718529,0.00022997,2]
[310652445,1704636648078,-278.56,0.00022997,2]
[310652446,1704636648087,-500.0,0.00022997,2]
[310652447,1704636648096,-507.3488532,0.00022997,2]
[310652448,1704636648105,-500.0,0.00022997,2]
[310652449,1704636648114,-500.0,0.00022997,2]
[310652450,1704636648124,-500.0,0.00022997,2]
[310652451,1704636648134,-553.07572028,0.00022997,2]
[310652452,1704636648144,-577.63759949,0.00022997,2]
[310652453,1704636648154,-508.96633467,0.00022997,2]
[310652454,1704636648163,-500.0,0.00022997,2]
[310652455,1704636648173,-509.17828653,0.00022997,2]
[310652456,1704636648182,-500.0,0.00022997,2]
[310652457,1704636648191,-508.00064643,0.00022997,2]
[310652458,1704636648201,-500.0,0.00022997,2]
[310652459,1704636648210,-215.71032624,0.00022997,2]
[310652460,1704636648219,-506.19971971,0.00022997,2]
[310652461,1704636648229,-555.00984239,0.00022997,2]
[310652462,1704636648240,-635.09741829,0.00022997,2]
[310652463,1704636648251,-518.11568185,0.00022997,2]
[310652464,1704636648260,-249.5986138,0.00022997,2]
[310652465,1704636648271,-500.0,0.00022997,2]
[310652466,1704636648281,-500.0,0.00022997,2]
[310652467,1704636648290,-500.0,0.00022997,2]
[310652468,1704636648299,-500.0,0.00022997,2]
[310652469,1704636648308,-347.79937797,0.00022997,2]
[310652470,1704636648318,-510.97071241,0.00022997,2]
[310652471,1704636648327,-567.41158831,0.00022997,2]
[310652472,1704636648336,-500.0,0.00022997,2]
[310652473,1704636648346,-500.0,0.00022997,2]
[310652474,1704636648355,-254.95,0.00022997,2]
[310652475,1704636648364,-500.0,0.00022997,2]
[310652476,1704636648374,-500.0,0.00022997,2]
[310652477,1704636648383,-456.39,0.00022997,2]
[310652478,1704636648393,-500.0,0.00022997,2]
[310652479,1704636648402,-550.67225041,0.00022997,2]
[310652480,1704636648412,-500.0,0.00022997,2]
[310652481,1704636648421,-571.41730033,0.00022997,2]
[310652482,1704636648430,-537.30044863,0.00022997,2]
[310652483,1704636648439,-306.09,0.00022997,2]
[310652484,1704636648449,-500.0,0.00022997,2]
[310652485,1704636648458,-633.59530615,0.00022997,2]
[310652486,1704636648467,-514.97124497,0.00022997,2]
[310652487,1704636648477,-366.98843856,0.00022997,2]
[310652488,1704636648486,-500.0,0.00022997,2]
[310652489,1704636648495,-500.0,0.00022997,2]
[310652490,1704636648505,-644.18343144,0.00022997,2]
[310652491,1704636648515,-412.6351475,0.00022997,2]
[310652492,1704636648528,-500.0,0.00022997,2]
[310652493,1704636648538,-525.65452068,0.00022997,2]
[310652494,1704636648549,-500.0,0.00022997,2]
[310652495,1704636648558,-500.0,0.00022997,2]
[310652496,1704636648567,-514.39256458,0.00022997,2]
[310652497,1704636648577,-313.91,0.00022997,2]
[310652498,1704636648585,-503.39986224,0.00022997,2]
[310652499,1704636648595,-500.0,0.00022997,2]
[310652500,1704636648604,-626.21,0.00022997,2]
[310652501,1704636648613,-503.96465017,0.00022997,2]
[310652502,1704636648622,-500.0,0.00022997,2]
[310652503,1704636648631,-500.0,0.00022997,2]
[310652504,1704636648640,-271.2,0.00022997,2]
[310652505,1704636648649,-509.443956,0.00022997,2]
[310652506,1704636648659,-500.0,0.00022997,2]
[310652507,1704636648668,-500.0,0.00022997,2]
[310652508,1704636648678,-507.96978619,0.00022997,2]
[310652509,1704636648687,-226.70678231,0.00022997,2]
[310652510,1704636648697,-500.0,0.00022997,2]
[310652511,1704636648706,-500.0,0.00022997,2]
[310652512,1704636648715,-508.49049228,0.00022997,2]
[310652513,1704636648724,-500.0,0.00022997,2]
[310652514,1704636648733,-584.72806319,0.00022997,2]
[310652515,1704636648742,-543.79,0.00022997,2]
[310652516,1704636648752,-500.0,0.00022997,2]
[310652517,1704636648761,-500.0,0.00022997,2]
[310652518,1704636648771,-500.0,0.00022997,2]
[310652520,1704636648781,-396.12795436,0.00022997,2]
[310652521,1704636648791,-512.99023667,0.00022997,2]
[310652522,1704636648800,-321.46844516,0.00022997,2]
[310652523,1704636648810,-500.0,0.00022997,2]
[310652524,1704636648819,-257.73,0.00022997,2]
[310652525,1704636648829,-500.0,0.00022997,2]
[310652526,1704636648839,-500.0,0.00022997,2]
[310652527,1704636648848,-504.52907176,0.00022997,2]
[310652528,1704636648858,-503.08139299,0.00022997,2]
[310652529,1704636648867,-509.65054328,0.00022997,2]
[310652531,1704636648878,-500.0,0.00022997,2]
[310652532,1704636648887,-504.19364526,0.00022997,2]
[310652533,1704636648896,-504.06512651,0.00022997,2]
[310652535,1704636648905,-409.39091412,0.00022997,2]
[310652536,1704636648914,-500.0,0.00022997,2]
[310652537,1704636648924,-549.3,0.00022997,2]
[310652538,1704636648933,-500.0,0.00022997,2]
[310652539,1704636648943,-500.0,0.00022997,2]
[310652540,1704636648951,-500.0,0.00022997,2]
[310652541,1704636648961,-500.0,0.00022997,2]
[310652542,1704636648970,-316.37536092,0.00022997,2]
[310652543,1704636648979,-500.0,0.00022997,2]
[310652544,1704636648988,-500.0,0.00022997,2]
[310652546,1704636648997,-518.08372825,0.00022997,2]
[310652547,1704636649007,-500.0,0.00022997,2]
[310652548,1704636649016,-465.92294225,0.00022997,2]
[310652549,1704636649027,-226.55,0.00022997,2]
[310652550,1704636649037,-500.0,0.00022997,2]
[310652551,1704636649045,-500.0,0.00022997,2]
[310652552,1704636649055,-215.13428371,0.00022997,2]
[310652553,1704636649064,-500.0,0.00022997,2]
[310652554,1704636649074,-500.0,0.00022997,2]
[310652555,1704636649084,-500.0,0.00022997,2]
[310652556,1704636649093,-511.96052073,0.00022997,2]
[310652558,1704636649103,-500.0,0.00022997,2]
[310652559,1704636649112,-500.0,0.00022997,2]
[310652561,1704636649122,-252.21,0.00022997,2]
[310652562,1704636649131,-500.0,0.00022997,2]
[310652563,1704636649140,-500.0,0.00022997,2]
[310652564,1704636649149,-518.8,0.00022997,2]
[310652565,1704636649159,-202.88307394,0.00022997,2]
[310652566,1704636649169,-500.0,0.00022997,2]